Cogmind - Beta 11.1 @@@ ROGUE MODE // 2022.05.21 @ 15:22:42 Player: Carlyle Result: Destroyed by G-47 Trooper with Particle Gun Performance ------------- Evolutions (2) 1000 Regions Visited (5) 1000 Robots Destroyed (48) 240 Value Destroyed (1084) 1084 Prototype IDs (4) 80 Alien Tech Used (0) 0 Bonus (44) 44 TOTAL SCORE: 3448 Bonus ------- High Alert Combat Kills 11 Follower Combat Kills 33 Cogmind --------- Core Integrity 0/550 Matter 300/300 Energy 60/100 System Corruption 0% Temperature Cool (9) Movement Core (500) Ox9 Location -8/Materials Parts ------- > --- POWER (1) -------- (None) > --- PROPULSION (4) --- (None) > --- UTILITY (3) ------ Improved Heat Sink Large Storage Unit Actuator Array > --- WEAPON (3) ------- Katana Katana > --- INVENTORY (15) --- Micro Nuclear Core Carbon-fiber Leg Carbon-fiber Leg Wheel Improved Sensor Array Improved Sensor Array Melee Analysis Suite Ion Cannon Assault Cannon Assault Cannon Advanced Assault Cannon Advanced Assault Cannon Advanced Assault Cannon Grenade Launcher Peak State ------------ > --- POWER ------------ Micro Nuclear Core > --- PROPULSION ------- Improved Carbon-fiber Leg Improved Carbon-fiber Leg Improved Carbon-fiber Leg Improved Carbon-fiber Leg > --- UTILITY ---------- Improved Heat Sink Large Storage Unit Improved Sensor Array > --- WEAPON ----------- Katana Katana Katana > --- INVENTORY -------- Micro Nuclear Core Carbon-fiber Leg Carbon-fiber Leg Wheel Improved Sensor Array Melee Analysis Suite Actuator Array Ion Cannon Assault Cannon Assault Cannon Advanced Assault Cannon Advanced Assault Cannon Grenade Launcher Blade Saw [Rating: 40] Favorites ----------- Power Ion Engine Engine Ion Engine Power Core Micro Nuclear Core Propulsion Wheel Leg Improved Carbon-fiber Leg Wheel Wheel Utility Sensor Array Device Sensor Array Storage Small Storage Unit Protection Medium Armor Plating Weapon Katana Energy Gun Medium Laser Ballistic Cannon Assault Cannon Launcher Grenade Launcher Slashing Weapon Katana Build | -11 -10 -10 -9 -9 -8 ------- Run | Scr Mat Min Mat Min Mat Slots Evolved 4 | . . . 2 . 2 Power . | . . . . . . Propulsion 2 | . . . 1 . 1 Utility 1 | . . . 1 . . Weapon 1 | . . . . . 1 Parts Attached 46 | 6 3 1 7 8 21 Power 5 | 1 . . 1 . 3 Engine 4 | 1 . . 1 . 2 Core 1 | . . . . . 1 Reactor . | . . . . . . Propulsion 19 | 2 . . 3 2 12 Treads . | . . . . . . Leg 4 | . . . . . 4 Wheel 15 | 2 . . 3 2 8 Hover . | . . . . . . Flight . | . . . . . . Utility 10 | 1 3 . 1 2 3 Device 4 | . 1 . . . 3 Storage 4 | 1 2 . . 1 . Processor . | . . . . . . Hackware . | . . . . . . Protection 2 | . . . 1 1 . Artifact . | . . . . . . Weapon 12 | 2 . 1 2 4 3 Energy Gun 2 | 2 . . . . . Energy Cannon . | . . . . . . Ballistic Gun . | . . . . . . Ballistic Cannon 1 | . . . . 1 . Launcher 2 | . . 1 . 1 . Special Weapon . | . . . . . . Impact Weapon . | . . . . . . Slashing Weapon 7 | . . . 2 2 3 Piercing Weapon . | . . . . . . Special Melee Weapon . | . . . . . . Unidentified Prototypes . | . . . . . . Parts Lost 21 | . . . 2 1 18 Power 4 | . . . 1 . 3 Propulsion 11 | . . . 1 . 10 Utility 3 | . . . . 1 2 Weapon 3 | . . . . . 3 Highest Loss Streak 7 | . . . 1 1 7 To Critical Strikes . | . . . . . . Average Slot Usage (%) 95 | . 91 100 96 100 90 Engine 9 | . 14 14 11 11 4 Leg 3 | . . . . . 9 Wheel 26 | . 28 28 32 33 20 Device 13 | . 6 14 11 11 15 Storage 11 | . 14 14 11 11 9 Protection 3 | . . . 7 11 . Energy Gun 9 | . 28 24 6 . . Launcher 2 | . . 3 6 1 . Slashing Weapon 14 | . . . 8 18 26 Naked Turns . | . . . . . . Heaviest Build 88 | 13 88 16 23 37 39 Greatest Support 72 | 20 20 20 36 36 72 Greatest Overweight (x) 10 | . 4 . 1 1 10 Average Overweight (x) . | . . . . . . Largest Inventory Capacity 25 | 8 25 8 8 15 15 Average Capacity 10 | 7 8 8 8 9 15 Most Carried 15 | 4 8 8 8 15 15 Average Carried 9 | 2 6 7 7 8 13 Final Capacity 15 | 8 8 8 8 15 15 Final Carried 15 | 4 7 8 7 15 14 Class Distribution -------------------- 80% | Mutant 19% | Scavenger-Mutant Dominant Class ---------------- Mutant | -10/Materials Mutant | -10/Mines Mutant | -9/Materials Mutant | -9/Mines Scavenger-Mutant | -8/Materials Resources | -11 -10 -10 -9 -9 -8 ----------- Run | Scr Mat Min Mat Min Mat Matter Collected 864 | 198 195 83 140 80 168 Remotely . | . . . . . . Salvage Created 1336 | . . 6 274 26 1030 Parts 93 | . . 2 34 . 57 Haulers Intercepted 1 | . . . . . 1 Recyclers Shooed . | . . . . . . Parts Field Recycled . | . . . . . . Retrieved Matter . | . . . . . . Parts Self-Destructed . | . . . . . . Prevented . | . . . . . . Kills | -11 -10 -10 -9 -9 -8 ------- Run | Scr Mat Min Mat Min Mat Combat Hostiles Destroyed 34 | . . 3 13 2 16 Melee 19 | . . . 1 2 16 Guns 1 | . . . 1 . . AOE 14 | . . 3 11 . . Classes Destroyed 11 | . . 1 6 1 3 Worker 5 | . . . 1 . 4 Builder 3 | . . . 2 . 1 Tunneler 1 | . . . . . 1 Hauler 1 | . . . . . 1 Recycler 2 | . . . 1 . 1 Watcher 4 | . . . 2 . 2 Swarmer 15 | . . 3 10 . 2 Grunt 11 | . . . 2 . 9 Sentry 4 | . . . 1 . 3 Hunter 2 | . . . . . 2 Assembled 2 | . . . . 2 . Best Kill Streak 14 | . . 3 14 1 4 Combat Bots Only 8 | . . 3 8 1 3 Max Kills in Single Turn 4 | . . 1 4 1 1 Gunslinging . | . . . . . . Exploded 2 | . . 1 2 . . Melee 1 | . . . 1 1 1 Uniques/NPCs Destroyed . | . . . . . . Combat | -11 -10 -10 -9 -9 -8 -------- Run | Scr Mat Min Mat Min Mat Damage Taken 2598 | . . 78 371 80 2069 Core 647 | . . 45 44 . 558 Absorbed by Shields . | . . . . . . Core Remaining (%) 90 | 100 . 82 . 89 . Volleys Fired 14 | . . 3 11 . . Largest 2 | . . 2 2 . . Hottest 80 | . . 80 80 . . Shots Fired 25 | . . 6 19 . . Gun 14 | . . 3 11 . . Cannon . | . . . . . . Launcher 11 | . . 3 8 . . Special . | . . . . . . Kinetic . | . . . . . . Thermal 14 | . . 3 11 . . Explosive 11 | . . 3 8 . . Electromagnetic . | . . . . . . Robot Hit Streak 10 | . . 3 10 . . Robot Miss Streak 3 | . . 3 2 . . Penetration Max . | . . . . . . Secondary Targets . | . . . . . . Shots Hit Robots 97 | . . 3 18 6 70 Core Hits 55 | . . 3 22 2 28 Critical Kills . | . . . . . . Critical Parts Destroyed . | . . . . . . Critical Strikes 5 | . . 1 . . 4 Burn 1 | . . 1 . . . Sever 4 | . . . . . 4 Melee Attacks 129 | . . . 6 9 114 Impact . | . . . . . . Slashing 129 | . . . 6 9 114 Piercing . | . . . . . . Sneak Attacks 9 | . . . . . 9 Combat Hostiles . | . . . . . . Follow-up Attacks 27 | . . . 1 2 24 Damage Inflicted 4150 | . . 162 1246 235 2507 Guns 100 | . . 12 88 . . Cannons . | . . . . . . Explosions 1115 | . . 150 965 . . Melee 2935 | . . . 193 235 2507 Ramming . | . . . . . . Kinetic . | . . . . . . Thermal 100 | . . 12 88 . . Explosive 1115 | . . 150 965 . . Electromagnetic . | . . . . . . Impact . | . . . . . . Slashing 2935 | . . . 193 235 2507 Piercing . | . . . . . . Highest Corruption . | . . . . . . Average Corruption . | . . . . . . Corruption Purged . | . . . . . . Corruption Blocked . | . . . . . . Overload Shots . | . . . . . . Overflow Damage 124 | . . 12 34 34 44 Projectiles . | . . . . . . Explosions 46 | . . 12 34 . . Melee 78 | . . . . 34 44 Knockbacks . | . . . . . . Impact . | . . . . . . Kinetic . | . . . . . . Secondary . | . . . . . . Self-Inflicted Damage 115 | . . 61 54 . . Shots 4 | . . 2 2 . . Rammed . | . . . . . . Targets Rammed . | . . . . . . Kicked . | . . . . . . Crushed . | . . . . . . Highest Temperature 74 | . . 54 74 2 . Average Temperature 25 | . . 28 24 2 . Received Heat Transfer 1105 | . . . 39 40 1026 Siege Activations . | . . . . . . Robots Corrupted . | . . . . . . Combat Hostiles . | . . . . . . Parts Fried . | . . . . . . Impact Corruptions . | . . . . . . Robots Melted . | . . . . . . Combat Hostiles . | . . . . . . Parts Melted . | . . . . . . Heat Transferred 370 | . . 111 259 . . Parts Sabotaged . | . . . . . . Parts Stolen . | . . . . . . Parts Stripped . | . . . . . . Power Chain Reactions . | . . . . . . Missiles Intercepted . | . . . . . . Alert | -11 -10 -10 -9 -9 -8 ------- Run | Scr Mat Min Mat Min Mat Peak Influence 435 | . 28 151 435 111 299 Initial 111 | . . 10 58 111 39 Average 124 | . 16 11 274 106 188 Maximum Alert Level 2 | . . . 2 . 1 Low Security (%) 71 | 100 100 100 31 100 45 Level 1 23 | . . . 24 . 54 Level 2 5 | . . . 43 . . Level 3 . | . . . . . . Level 4 . | . . . . . . Level 5 . | . . . . . . High Security . | . . . . . . Max Security . | . . . . . . Squads Dispatched 6 | . . . 2 . 4 Investigation 1 | . . . . . 1 Extermination . | . . . . . . Reinforcement 5 | . . . 2 . 3 Assault . | . . . . . . Garrison . | . . . . . . Intercept . | . . . . . . Searches Triggered . | . . . . . . Construction Impeded 1 | . . . 1 . . Haulers Reinforced . | . . . . . . Active Scanning Responses . | . . . . . . Cargo Convoy Interrupts . | . . . . . . Stealth | -11 -10 -10 -9 -9 -8 --------- Run | Scr Mat Min Mat Min Mat Distress Signals 7 | . . . 1 . 6 Communications Jammed . | . . . . . . Distress Signals . | . . . . . . Times Spotted 58 | . 2 3 15 2 36 Peak Tracking Total 8 | . 2 3 8 1 7 Tactical Retreats 3 | . . . 1 . 2 Traps | -11 -10 -10 -9 -9 -8 ------- Run | Scr Mat Min Mat Min Mat Traps Triggered . | . . . . . . Indirectly . | . . . . . . Trap Hack Attempts . | . . . . . . Triggered . | . . . . . . Disarmed . | . . . . . . Reprogrammed . | . . . . . . Reused . | . . . . . . Traps Extracted . | . . . . . . Installed 4 | . . . . 4 . Triggered . | . . . . . . Most Traps Carried 1 | . . . . 1 . Machines | -11 -10 -10 -9 -9 -8 ---------- Run | Scr Mat Min Mat Min Mat Machines Disabled 3 | . . 1 2 . . Max in Single Turn 1 | . . 1 1 . . Machines Sabotaged . | . . . . . . Garrisons Compromised . | . . . . . . Overloaded Fab Kills . | . . . . . . Hacking | -11 -10 -10 -9 -9 -8 --------- Run | Scr Mat Min Mat Min Mat Machines Accessed 14 | . 3 . 6 . 5 Terminals 11 | . 2 . 5 . 4 Fabricators . | . . . . . . Repair Stations . | . . . . . . Recycling Units 1 | . 1 . . . . Scanalyzers 1 | . . . 1 . . Garrison Access 1 | . . . . . 1 Total Hacks 48 | . 8 . 20 . 20 Successful 29 | . 4 . 14 . 11 Failed 19 | . 4 . 6 . 9 Catastrophic . | . . . . . . Database Lockouts . | . . . . . . Manual 20 | . 4 . 8 . 8 Terminals 36 | . 6 . 12 . 18 Fabricators . | . . . . . . Repair Stations . | . . . . . . Recycling Units 2 | . 2 . . . . Scanalyzers 8 | . . . 8 . . Garrison Access 2 | . . . . . 2 Terminal Hacks 10 | . 2 . 2 . 6 Robot Analysis 1 | . . . . . 1 Prototype ID Bank 2 | . 1 . . . 1 Branch Access Points 2 | . 1 . . . 1 Unreport Threat 2 | . . . 2 . . Locate Traps 1 | . . . . . 1 Zone Layout 2 | . . . . . 2 Fabricator Hacks . | . . . . . . Repair Station Hacks . | . . . . . . Recycling Unit Hacks 1 | . 1 . . . . Retrieve Components 1 | . 1 . . . . Scanalyzer 8 | . . . 8 . . Insert Component 4 | . . . 4 . . Analyze 4 | . . . 4 . . Garrison Access Hacks . | . . . . . . Unauthorized Hacks 10 | . 1 . 4 . 5 Terminals 9 | . 1 . 4 . 4 Track 7 | . 1 . 4 . 2 Botnet 2 | . . . . . 2 Fabricators . | . . . . . . Repair Stations . | . . . . . . Recycling Units . | . . . . . . Scanalyzers . | . . . . . . Garrison Access 1 | . . . . . 1 Reprogram 1 | . . . . . 1 Data Cores Recovered . | . . . . . . Used . | . . . . . . Hacking Detections 14 | . 3 . 6 . 5 Full Trace Events . | . . . . . . Feedback Events . | . . . . . . Feedback Blocked . | . . . . . . Robot Schematics Acquired . | . . . . . . Robots Built . | . . . . . . Authchips . | . . . . . . Time . | . . . . . . Total Robot Build Rating . | . . . . . . Part Schematics Acquired 4 | . . . 4 . . Parts Built . | . . . . . . Authchips . | . . . . . . Time . | . . . . . . Total Part Build Rating . | . . . . . . Parts Repaired . | . . . . . . Time . | . . . . . . Parts Recycled . | . . . . . . Recycled Matter . | . . . . . . Retrieved Matter . | . . . . . . Retrieved Components 1 | . 1 . . . . Parts Scanalyzed 4 | . . . 4 . . Part Schematics Acquired 4 | . . . 4 . . Parts Damaged . | . . . . . . Bothacking | -11 -10 -10 -9 -9 -8 ------------ Run | Scr Mat Min Mat Min Mat Used RIF Installer . | . . . . . . Robots Hacked . | . . . . . . Non-combat . | . . . . . . Combat . | . . . . . . Robot Hacks Applied . | . . . . . . Relay Couplers Released . | . . . . . . Fabnet Peak Effective % . | . . . . . . Robots Rewired . | . . . . . . Allies Hacked . | . . . . . . Hacks Repelled . | . . . . . . Allies | -11 -10 -10 -9 -9 -8 -------- Run | Scr Mat Min Mat Min Mat Total Allies 2 | . . . . . 2 Largest Group 2 | . . . . . 2 Highest-Rated Group 50 | . . . . . 50 Highest-Rated Ally 25 | . . . . . 25 Total Orders . | . . . . . . Ally Attacks 7 | . . . . . 7 Total Damage 172 | . . . . . 172 Kills 2 | . . . . . 2 Allies Corrupted . | . . . . . . Allies Melted . | . . . . . . Intel | -11 -10 -10 -9 -9 -8 ------- Run | Scr Mat Min Mat Min Mat Robot Analysis Total 1 | . . . . . 1 Derelict Logs Recovered 2 | . . 1 . 1 . Drone Launches . | . . . . . . Drone Recoveries . | . . . . . . Exploration | -11 -10 -10 -9 -9 -8 ------------- Run | Scr Mat Min Mat Min Mat Turns Passed 2286 | 56 162 590 283 344 851 Spaces Moved 1974 | 54 187 716 239 278 500 Core 14 | 10 . . . . 4 Treads . | . . . . . . Legs 108 | . . . . . 108 Wheels 1852 | 44 187 716 239 278 388 Hover . | . . . . . . Flight . | . . . . . . Fastest Speed 50 | 50 80 80 80 86 80 Average Speed 86 | 74 80 80 82 89 99 Slowest Speed 550 | 80 140 80 95 101 550 Overloaded Moves . | . . . . . . Propulsion Burnouts . | . . . . . . Robots Hopped . | . . . . . . Cave-ins Triggered . | . . . . . . Exploration Rate (%) 40 | 3 39 96 28 36 43 Regions Visited 5 Branch Regions 2 Pre-discovered Areas 2 | . . 2 . . . Known Exits Taken 1 | . 1 . . . . Unknown Exits Taken 4 | 1 . 1 1 1 . Scrap Searched 2 | . . 1 . 1 . Spaces Dug 5 | . . . . . 5 Terrain Destroyed 93 | . . 35 53 . 5 Melee 5 | . . . . . 5 Projectile . | . . . . . . AOE 88 | . . 35 53 . . Terrain Rammed . | . . . . . . Walls Destroyed . | . . . . . . Machines Disabled . | . . . . . . Actions | -11 -10 -10 -9 -9 -8 --------- Run | Scr Mat Min Mat Min Mat Total 2383 | 69 199 726 301 361 727 Wait 158 | . . 4 18 40 96 Move 1969 | 53 186 715 238 277 500 Hop . | . . . . . . Pick Up 69 | 10 7 2 12 17 21 Fast Attach . | . . . . . . Attach 32 | 6 1 . 5 1 19 Detach 1 | . . . 1 . . Swap 14 | . 2 1 2 7 2 Drop 29 | . 3 1 9 8 8 Fire 14 | . . 3 11 . . Melee 93 | . . . 5 7 81 Ram . | . . . . . . Kick . | . . . . . . Crush . | . . . . . . Escape Stasis . | . . . . . . Rewire . | . . . . . . Trap 4 | . . . . 4 . Miscellaneous . | . . . . . . Route ------- -11/Scrapyard -10/Materials (discovered 2 exits: *Mat / *Min) -10/Mines -9/Materials -9/Mines -8/Materials History --------- Turn | Location | Event 9 | -11/Scrapyard | Discovered new exit (range 16) 57 | -11/Scrapyard | Entered Materials 139 | -10/Materials | Identified exit to Mines 164 | -10/Materials | Discovered new exit (range 4) 219 | -10/Materials | Entered Mines 220 | -10/Mines | Learned location of Storage (-9) 315 | -10/Mines | Build established: Mutant 333 | -10/Mines | Learned location of Zion (-6) 777 | -10/Mines | Discovered new exit (range 10) 809 | -10/Mines | Entered Materials 809 | -9/Materials | Evolved 2 slots: Propulsion x1, Utility x1 981 | -9/Materials | Destroyed 8 combat bots 1072 | -9/Materials | Discovered new exit (range 13) 1092 | -9/Materials | Entered Mines 1093 | -9/Mines | Assembled infested the area 1217 | -9/Mines | Learned location of 1 exit from Lower Caves 1224 | -9/Mines | Found a hidden stash of uninstalled traps 1366 | -9/Mines | Discovered new exit (range 3) 1436 | -9/Mines | Entered Materials 1436 | -8/Materials | Evolved 2 slots: Propulsion x1, Weapon x1 1549 | -8/Materials | Lost 6 parts (1p3n2u) 1790 | -8/Materials | Lost 5 parts (1p3n1w) 1847 | -8/Materials | Core integrity fell below 50% 2271 | -8/Materials | Core integrity fell below 20% 2287 | -8/Materials | Destroyed by G-47 Trooper with Particle Gun Last Messages --------------- 02235_ Katana follow-up attack on G-50 Soldier. 02236_ G-47 Trooper suffers critical hit (Burn). 02240_ G-47 Trooper destroyed. 02245_ Critical hit (Burn: +37). 02249_ G-47 Trooper destroyed. 02249_ Imp. Carbon-fiber Leg destroyed. 02252_ Acquired 3 matter. 02252_ Katana destroyed. 02254_ Imp. Carbon-fiber Leg destroyed. 02256_ G-47 Trooper destroyed. 02257_ Acquired 5 matter. 02257_ Mic. Nuclear Core destroyed. 02257_ Katana follow-up attack on G-47 Trooper. 02260_ Destroyed Imp. Heat Sink. 02263_ G-47 Trooper Aluminum Leg severed. 02263_ Katana follow-up attack on G-47 Trooper. 02263_ G-47 Trooper destroyed. 02266_ Imp. Carbon-fiber Leg destroyed. 02272_ Blade Saw destroyed. 02285_ Critical hit (Burn: +37). Map ----- +----------------------------------------------------+ | #????????????????????????????????????????????????? | | #????????????????????????????????????????????????? | | #????????????????????????????????????????????????? | | #????????????????????????????????????????????????? | | #????????????????????????????????????????????????? | | #????????????????????????????????????????????????? | | #????????????????????????????????????????????????? | | #????????????????????????????????????????????????? | | #####+#########??????????????????????????????????? | | # #??????????????????????????????????? | | # "" #??????????????????????????????????? | | # T" #??????????????????????????????????? | | #####??# "" #??????????????????????????????????? | | #??????# #??????????????????????????????????? | | #??????# #??????????????????????????????????? | | ##########+####??????????????????????????????????? | | #??????????????????????????????????? | | #??????????????????????????????????? | | #??????????????????????????????????? | | ########### #??????????????????????????????????? | | #?????????# ##?????????????????????????????????? | | #?????????#^^^"#???????????#######???????????????? | | #??######## ############## #???????????????? | | #??# w==[%! #????????######## | | #??# %=*g!ug T #????????# """ # | | #??# %[%%= @ #????????# "T" # | | #?# ###### # !####### #????????# # | | #????????# # !*===#?????## ########### # | | #????????# #] *== #??????# # + !# | | #????????# # *= #??????# # # # | | ?#????????# ########??????# # ####+##? | | ??????????# #?????????????# # ## ???? | | ??????????# #?????????????# + ## ???? | | ??????????# #?????????????# # + ???? | | ??????????# ????????????##### # ## ???? | | ??????????# ??????????### # # ## ???? | | ??????????# ??????????### ########+#####???? | | ??????????# ??????????### # #??????# #???#???? | | ????????????????????????####### ######## #####???? | | ## ?????????????????????####### ???? | | [ ??????????????????????????# ???????????????? | | ?????????????????????????" ??????????????? | | !! ?????????????????????????T ??????????????? | | !! ?????????????????????????" ?????????????? | | !! ?????????????????????????# ????????????? | | ??????????????????????????# "" ???????????? | | ??#????????????????????????? "T ???????????? | | #####????????????????????? "" ??????????? | | "" ????????????????????? ? ?????????? | | "" ???????????????????? ?? *???????????? | +----------------------------------------------------+ Best States ------------- Heat Dissipation 45 Energy Generation 15 Energy Capacity 250 Matter Stores 300 Matter Capacity 300 Sight Range 16 Robot Scan Range 15 Terrain Scan Density 10 Armor Coverage 225 Evasion (%) 55 Item Schematics ----------------- Katana | -9/Materials | Scanalyzed Med. Armor Plating | -9/Materials | Scanalyzed Grenade Launcher | -9/Materials | Scanalyzed Assault Cannon | -9/Materials | Scanalyzed Robot Schematics ------------------ None Fabricated ------------ Nothing Alien Tech Used ----------------- None Achievements -------------- None Challenges ------------ None Game ------ Seed MasterMiningProjector Manual? 0 Play Time 00:39:30 Cumulative 245.8 hours Start 2022.05.21 @ 13:21:32 End 2022.05.21 @ 15:22:42 Sessions 3 Manual Loads 0 Difficulty Rogue Special Mode None Game No. 163 Rogue 162 Adventurer 1 Explorer 0 Win Type - Total 1 Types 1/0/0/0/0/0/0/0/0 Lore% 49 Gallery% 62 Achievement% 46 Wizard Run 0 Options --------- ASCII 0 Keyboard 0 Movement Arrows Keybinds 0 Fullscreen 1 Font 18/SmallcapsGlow Map View 76x50 Tactical HUD 1 Map Filters NONE Filters NONE Steam 1 RUN: 215d370e-e0cb-42f5-93e8-7348210c8106